bitfinex-derivatives/quotes_SOLF0:USTF0_20250312
["timestamp","ask_amount","ask_price","bid_price","bid_amount"]
[1741802520015,0.0613105,123.61,123.59,8.093]
[1741802520611,0.0613105,123.61,123.58,0.0556903]
[1741802520818,0.0613105,123.61,123.6,8.0928]
[1741802521022,0.0613105,123.61,123.58,0.0556903]
[1741802521315,0.0613105,123.61,123.6,8.0928]
[1741802521505,0.0613105,123.61,123.58,34.4756903]
[1741802521916,8.1538105,123.61,123.58,42.5694903]
[1741802522613,0.0613105,123.61,123.58,0.0556903]
[1741802523416,8.0902,123.64,123.58,89.57159093]
[1741802523619,2.1322,123.66,123.58,89.57159093]
[1741802523916,8.0872,123.69,123.66,8.0885]
[1741802524110,2.115,123.73,123.63,34.4]
[1741802524314,36.515,123.73,123.63,36.5402]
[1741802524522,8.0899,123.65,123.61,8.0918]
[1741802524720,36.515,123.73,123.61,8.0918]
[1741802524721,89.59590063,123.68,123.61,8.0918]
[1741802524919,0.06221647,123.64,123.62,0.06147639]
[1741802525115,8.0909,123.63,123.62,0.06147639]
[1741802525417,0.06221647,123.64,123.62,0.06147639]
[1741802526616,8.0909,123.63,123.62,0.06147639]
[1741802527017,34.48221647,123.64,123.62,0.06147639]
[1741802527414,0.06221647,123.64,123.62,0.06147639]
[1741802528220,0.06221647,123.64,123.63,8.0909]
[1741802529119,484.0,123.77,123.63,8.08]
[1741802529315,6.3414,123.76,123.67,55.15590063]
[1741802529522,61.49730063,123.76,123.68,34.58]
[1741802529721,55.15590063,123.74,123.68,34.58]
[1741802529912,55.15590063,123.72,123.61,91.94890063]
[1741802530116,34.64,123.71,123.61,94.02670063]
[1741802530316,8.1482048,123.68,123.65,0.06111228]
[1741802530613,0.0603048,123.68,123.65,0.06111228]
[1741802530814,34.7603048,123.68,123.65,0.06111228]
[1741802531323,8.0887,123.67,123.65,0.06111228]
[1741802531921,34.7603048,123.68,123.65,0.06111228]
[1741802532122,0.0603048,123.68,123.65,0.06111228]
[1741802532316,0.0603048,123.68,123.67,8.0882]
[1741802532712,0.0603048,123.68,123.66,2.112]
[1741802532919,0.0603048,123.68,123.65,0.06111228]
[1741802533117,0.0603048,123.68,123.66,8.0886]
[1741802533319,0.0603048,123.68,123.65,0.06111228]
[1741802533820,8.0883,123.67,123.65,0.06111228]
[1741802534417,8.1481048,123.68,123.65,0.06111228]
[1741802534717,0.0603048,123.68,123.65,0.06111228]
[1741802535424,0.0603048,123.68,123.67,8.0882]
[1741802535618,0.0603048,123.68,123.65,0.06111228]
[1741802536819,0.0603048,123.68,123.65,34.72111228]
[1741802537019,36.7333,123.75,123.65,68.6337515]
[1741802537218,36.7333,123.75,123.65,68.57263922]
[1741802537821,8.0862,123.71,123.67,8.0881]
[1741802538214,0.05250616,123.7,123.68,0.06135363]
[1741802538413,0.05250616,123.7,123.68,8.14845363]
[1741802538621,0.05250616,123.7,123.68,0.06135363]
[1741802539119,0.05250616,123.7,123.69,8.0869]
[1741802539418,0.05250616,123.7,123.68,0.06135363]
[1741802540025,1.40716928,123.78,123.69,311.33263922]
[1741802540219,33.91263922,123.84,123.72,33.91263922]
[1741802540520,8.0795,123.81,123.75,8.0826]
[1741802541124,8.0795,123.81,123.73,34.76]
[1741802541325,0.0595905,123.79,123.77,0.06173063]
[1741802542025,8.0826,123.76,123.69,242.66]
[1741802542223,34.78,123.75,123.66,33.34656253]
[1741802542422,42.8633,123.75,123.66,33.34656253]
[1741802542622,34.78,123.75,123.66,33.34656253]
[1741802543026,0.05657236,123.72,123.69,0.0590139]
[1741802544622,8.0863,123.7,123.64,10.207]
[1741802544827,42.7663,123.7,123.64,8.0898]
[1741802545124,8.0883,123.67,123.63,242.64]
[1741802545323,42.7483,123.67,123.61,10.0979]
[1741802545523,34.66,123.67,123.61,2.006]
[1741802545926,0.05366573,123.65,123.57,311.15263922]
[1741802546229,34.66,123.67,123.58,2.006]
[1741802546420,34.66,123.67,123.61,8.092]
[1741802547124,0.05290353,123.65,123.63,0.05210477]
[1741802547831,34.6,123.64,123.57,242.6]
[1741802548129,8.0926,123.61,123.57,242.6]
[1741802548320,34.62,123.61,123.55,8.0958]
[1741802548726,34.62,123.61,123.54,2.1411]
[1741802549127,0.05704768,123.59,123.57,0.05171632]
[1741802549330,8.0941,123.58,123.57,0.05171632]
[1741802549720,8.0941,123.58,123.53,8.0971]
[1741802550131,8.0948,123.57,123.52,29.23562586]
[1741802550436,34.58,123.58,123.52,29.23562586]
[1741802550625,68.49263922,123.58,123.52,29.23562586]
[1741802550822,33.97127172,123.56,123.52,29.23562586]
[1741802551024,33.91263922,123.54,123.52,3.18207123]
[1741802551225,33.91263922,123.54,123.48,8.1007]
[1741802551428,36.5688,123.55,123.47,33.34656253]
[1741802551621,34.56,123.55,123.51,8.0983]
[1741802551826,34.54,123.56,123.47,67.88656253]
[1741802552227,0.06094001,123.54,123.52,0.05441159]
[1741802555440,0.06094001,123.54,123.53,8.0974]
[1741802556340,34.36,123.6,123.57,8.0942]
[1741802556642,34.36,123.6,123.54,33.91263922]
[1741802557538,0.06142057,123.58,123.56,0.05746249]
[1741802563143,0.06142057,123.58,123.57,8.0948]
[1741802564046,226.91263922,123.66,123.56,68.21010171]
[1741802564345,42.3302,123.65,123.57,4.2572]
[1741802564541,34.24,123.65,123.57,4.2572]
[1741802565048,33.91263922,123.7,123.58,33.91263922]
[1741802565246,34.24,123.69,123.66,8.0889]
[1741802565641,34.29254236,123.69,123.66,0.06070211]
[1741802566144,8.0882,123.67,123.66,0.06070211]
[1741802567547,8.0878,123.68,123.66,0.06070211]
[1741802567748,34.29254236,123.69,123.66,0.06070211]
[1741802568852,8.0882,123.67,123.66,0.06070211]
[1741802569153,42.00053922,123.68,123.66,0.06070211]
[1741802569348,33.91263922,123.68,123.66,0.06070211]
[1741802570052,33.91263922,123.68,123.58,10.1862]
[1741802570053,41.99263922,123.68,123.58,10.1862]
[1741802570352,33.91263922,123.66,123.58,2.0923]
[1741802570552,8.0908,123.64,123.59,8.0931]
[1741802570851,34.24,123.65,123.57,4.2572]
[1741802571051,36.09793922,123.64,123.57,2.0896]
[1741802571246,0.0599242,123.62,123.6,0.05629929]
[1741802571446,34.22,123.61,123.6,0.05629929]
[1741802571649,42.3122,123.61,123.6,0.05629929]
[1741802571953,0.0599242,123.62,123.6,0.05629929]
[1741802572160,8.1519242,123.62,123.6,0.05629929]
[1741802572455,0.0599242,123.62,123.6,0.05629929]
[1741802573352,193.0,123.81,123.61,242.78]
[1741802573542,193.0,123.81,123.72,33.91263922]
[1741802573743,193.0,123.81,123.73,35.46]
[1741802573944,193.0,123.81,123.73,37.4854]
[1741802574150,326.46,123.84,123.75,33.91263922]
[1741802574459,0.05298685,123.81,123.78,0.05209317]
[1741802581655,8.13238685,123.81,123.78,0.05209317]
[1741802581851,0.05298685,123.81,123.78,0.05209317]
[1741802584261,35.05298685,123.81,123.78,0.05209317]
[1741802584557,54.9896882,123.8,123.78,0.05209317]
[1741802584760,54.9896882,123.8,123.73,2.0254]
[1741802584957,54.9896882,123.8,123.72,33.34656253]
[1741802585350,8.0813,123.78,123.72,33.34656253]
[1741802585553,54.9896882,123.8,123.72,33.34656253]
[1741802585863,0.06171368,123.77,123.75,0.05884243]
[1741802586051,35.00171368,123.77,123.75,0.05884243]
[1741802586566,8.0824,123.76,123.75,0.05884243]
[1741802587056,43.08381368,123.77,123.75,0.05884243]
[1741802587250,35.00171368,123.77,123.75,0.05884243]
[1741802587455,8.0824,123.76,123.75,0.05884243]
[1741802588258,1.40665737,123.82,123.75,0.05884243]
[1741802588457,54.9896882,123.99,123.81,54.9896882]
[1741802588659,2.1184,123.99,123.88,54.9896882]
[1741802588858,2.1184,123.99,123.89,37.72]
[1741802589157,39.8384,123.99,123.89,37.72]
[1741802589557,0.06010327,123.95,123.93,0.05760219]
[1741802589763,242.5,123.94,123.84,54.9896882]
[1741802589949,37.9,123.93,123.89,54.9896882]
[1741802590361,57.1080882,123.99,123.87,54.9896882]
[1741802590563,37.9,123.96,123.89,54.9896882]
[1741802590858,0.05357145,123.94,123.91,0.0616638]
[1741802591456,37.95357145,123.94,123.91,0.0616638]
[1741802591657,92.94325965,123.94,123.91,0.0616638]
[1741802591958,92.94325965,123.94,123.81,33.34656253]
[1741802591959,54.9896882,123.92,123.81,33.34656253]
[1741802592162,54.9896882,123.92,123.81,35.40846253]
[1741802592460,2.1263,123.93,123.82,54.9896882]
[1741802592861,37.9,123.94,123.84,54.9896882]
[1741802593063,37.9,123.94,123.86,0.05587998]
[1741802593265,37.9,123.94,123.86,8.0758]
[1741802593465,37.9,123.94,123.85,2.123]
[1741802593664,37.86,123.95,123.86,54.9896882]
[1741802594060,37.86,123.95,123.89,8.0734]
[1741802594265,0.06015416,123.92,123.89,0.06165213]
[1741802594458,54.9896882,123.97,123.88,37.84]
[1741802594658,0.05397905,123.92,123.89,0.0583961]
[1741802594953,0.05397905,123.92,123.88,37.84]
[1741802595154,0.05397905,123.92,123.89,8.13414615]
[1741802595665,0.05397905,123.92,123.89,0.06084615]
[1741802595865,8.0694,123.96,123.89,0.06084615]
[1741802596068,92.7696882,123.97,123.88,37.84]
[1741802596363,8.0707,123.94,123.87,8.0748]
[1741802596567,54.9896882,123.95,123.87,8.0748]
[1741802596864,8.0717,123.93,123.87,8.0748]
[1741802597069,0.05344055,123.92,123.9,0.06037592]
[1741802597264,37.64444145,123.93,123.9,0.06037592]
[1741802598562,37.70556033,123.93,123.9,0.06037592]
[1741802599871,45.77706033,123.93,123.9,0.06037592]
[1741802600265,37.70556033,123.93,123.9,0.06037592]
[1741802601474,0.06111888,123.93,123.9,0.06037592]
[1741802605776,8.13281888,123.93,123.9,0.06037592]
[1741802606074,0.06111888,123.93,123.9,0.06037592]
[1741802606265,2.111,123.98,123.9,33.81563769]
[1741802606465,2.111,123.98,123.89,39.5589]
[1741802606669,72.15526177,123.97,123.89,37.36]
[1741802606871,8.0724,123.92,123.89,37.36]
[1741802607266,8.12403213,123.92,123.89,0.05344372]
[1741802607676,0.05153213,123.92,123.89,0.05344372]
[1741802608373,8.12383213,123.92,123.89,0.05344372]
[1741802609081,0.05153213,123.92,123.9,38.28]
[1741802609374,38.4,123.97,123.9,38.28]
[1741802609568,38.4,123.97,123.93,8.0711]
[1741802609569,8.0691,123.97,123.93,8.0711]
[1741802609975,8.0691,123.97,123.94,8.0705]
[1741802610171,8.0683,123.98,123.94,8.0705]
[1741802610366,37.97926177,124.03,123.94,8.0705]
[1741802610367,2.1066,124.03,123.94,72.19686012]
[1741802610570,2.0089,124.04,123.98,8.0676]
[1741802610872,8.0658,124.02,123.96,122.2707293]
[1741802611077,38.42,124.06,123.96,122.2707293]
[1741802611275,37.97926177,124.07,123.96,122.2707293]
[1741802611675,0.05135475,124.03,124.0,0.06065467]
[1741802611880,0.05135475,124.03,124.02,33.34656253]
[1741802612076,37.97926177,124.07,124.02,33.34656253]
[1741802612276,8.0648,124.03,124.02,33.34656253]
[1741802612984,8.0648,124.03,124.02,122.2707293]
[1741802613483,8.00165781,124.03,124.02,84.3534293]
[1741802614175,8.0654,124.02,124.01,0.05155623]
[1741802615184,8.0654,124.02,124.01,5.623e-05]
[1741802615478,8.068,123.98,123.97,148.15225829]
[1741802615673,33.75526177,123.98,123.94,150.62783719]
[1741802615872,8.07,123.95,123.94,150.62783719]
[1741802617581,0.05334513,123.96,123.93,0.05688893]
[1741802618176,8.12284513,123.96,123.93,0.05688893]
[1741802618580,0.05334513,123.96,123.93,0.05688893]
[1741802619088,8.12274513,123.96,123.93,0.05688893]
[1741802619985,8.0701,123.95,123.93,0.05688893]
[1741802620583,8.12314513,123.96,123.93,0.05688893]
[1741802621381,8.07,123.95,123.93,0.05688893]
[1741802621680,0.05334513,123.96,123.93,0.05688893]
[1741802622080,0.05334513,123.96,123.93,2.19978893]
[1741802622591,0.05334513,123.96,123.94,2.1063]
[1741802623089,0.05334513,123.96,123.95,8.07]
[1741802623683,247.87540673,124.04,123.94,4.2279]
[1741802623887,37.54,124.03,123.94,4.2279]
[1741802624280,55.61790673,124.06,123.94,4.2279]
[1741802624587,37.48,124.04,123.94,4.2279]
[1741802624785,0.06014049,124.01,123.98,0.05552183]
[1741802626187,54.87540673,124.0,123.98,0.05552183]
[1741802626484,54.87540673,124.0,123.93,2.1429]
[1741802626992,37.42,124.02,123.91,2.0964]
[1741802626993,54.87540673,123.98,123.91,135.91416765]
[1741802627186,92.23540673,123.98,123.91,133.81776765]
[1741802627490,54.87540673,123.96,123.91,133.81776765]
[1741802627685,0.05268255,123.96,123.93,0.05240916]
[1741802628290,8.0703,123.95,123.93,0.05240916]
[1741802628489,0.05268255,123.96,123.93,0.05240916]
[1741802628790,8.0704,123.95,123.93,0.05240916]
[1741802628991,0.05268255,123.96,123.93,0.05240916]
[1741802629388,8.0705,123.95,123.93,0.05240916]
[1741802629591,0.05268255,123.96,123.93,0.05240916]
[1741802630681,0.05268255,123.96,123.95,8.07]
[1741802630881,8.0672,124.0,123.93,0.05240916]
[1741802631289,8.0672,124.0,123.96,8.069]
[1741802631597,96.85540673,124.02,123.92,6.10867913]
[1741802631793,96.85540673,124.02,123.95,8.0696]
[1741802631995,0.05175519,123.98,123.96,0.05386433]
[1741802633683,0.05175519,123.98,123.97,8.0687]
[1741802634292,8.0658,124.02,123.98,8.0676]
[1741802634689,8.0658,124.02,123.95,41.6]
[1741802635292,41.64,124.04,123.95,41.6]
[1741802635489,0.04643189,124.0,123.97,0.05766345]
[1741802635695,41.60643189,124.0,123.97,0.05766345]
[1741802635894,8.068,123.98,123.97,0.05766345]
[1741802637796,49.67353189,124.0,123.97,0.05766345]
[1741802637992,41.60643189,124.0,123.97,0.05766345]
[1741802638196,49.67343189,124.0,123.97,0.05766345]
[1741802638399,0.04643189,124.0,123.97,0.05766345]
[1741802638895,0.04643189,124.0,123.98,8.0677]
[1741802639097,0.04643189,124.0,123.97,0.05766345]
[1741802639498,8.0677,123.99,123.97,0.05766345]
[1741802639992,8.0674,123.99,123.97,0.05766345]
[1741802640187,0.04643189,124.0,123.97,0.05766345]
[1741802640590,8.0678,123.99,123.97,0.05766345]
[1741802640791,0.04643189,124.0,123.97,0.05766345]
[1741802641798,0.04643189,124.0,123.99,8.0674]
[1741802641998,0.04643189,124.0,123.97,0.05766345]
[1741802642200,0.04643189,124.0,123.97,8.12596345]
[1741802642392,0.04643189,124.0,123.97,0.05766345]
[1741802642797,8.0674,123.99,123.97,0.05766345]
[1741802642994,41.02643189,124.0,123.97,0.05766345]
[1741802643388,8.068,123.98,123.97,0.05766345]
[1741802644295,8.068,123.98,123.97,6.345e-05]
[1741802646100,41.02643189,124.0,123.97,6.345e-05]
[1741802646696,8.068,123.98,123.97,6.345e-05]
[1741802651709,8.0677,123.99,123.97,6.345e-05]
[1741802652409,0.04643189,124.0,123.97,6.345e-05]
[1741802652599,0.04643189,124.0,123.98,8.0675]
[1741802652910,0.04643189,124.0,123.97,6.345e-05]
[1741802653105,0.04643189,124.0,123.97,8.06846345]
[1741802653611,0.04643189,124.0,123.98,8.0679]
[1741802653806,0.04643189,124.0,123.97,6.345e-05]
[1741802654212,8.0677,123.99,123.97,6.345e-05]
[1741802654413,0.04643189,124.0,123.97,6.345e-05]
[1741802654812,8.0678,123.99,123.97,6.345e-05]
[1741802655014,0.04643189,124.0,123.97,6.345e-05]
[1741802655215,0.04643189,124.0,123.97,2.03406345]
[1741802655512,0.04643189,124.0,123.98,8.0677]
[1741802655715,0.04643189,124.0,123.97,2.03406345]
[1741802655916,8.11353189,124.0,123.97,2.03406345]
[1741802656211,0.04643189,124.0,123.97,2.03406345]
[1741802657019,47.9851,124.03,123.97,2.03406345]
[1741802657213,39.92,124.03,123.97,2.03406345]
[1741802657614,8.0673,124.0,123.97,2.03406345]
[1741802657814,39.92,124.03,123.97,2.03406345]
[1741802658016,39.82,124.04,123.97,2.03406345]
[1741802658216,8.0669,124.0,123.97,10.1024]
[1741802658422,0.0513309,124.01,123.99,0.06060777]
[1741802658612,8.0669,124.0,123.99,0.06060777]
[1741802659915,8.0669,124.0,123.99,7.77e-06]
[1741802660115,47.7669,124.0,123.99,7.77e-06]
[1741802661022,8.0712,123.94,123.92,44.0179]
[1741802661222,33.73986188,123.98,123.92,4.3179]
[1741802661625,8.0704,123.95,123.92,4.3179]
[1741802661925,73.43986188,124.0,123.92,12.3892]
[1741802662129,8.0705,123.95,123.92,4.3179]
[1741802662321,73.43986188,124.0,123.92,4.3179]
[1741802662514,39.7,124.0,123.92,4.3179]
[1741802662720,8.0684,123.98,123.92,4.3179]
[1741802663021,0.060219,123.96,123.94,8.12413918]
[1741802663217,0.060219,123.96,123.94,0.05393918]
[1741802663614,8.0677,123.99,123.95,8.07]
[1741802663814,39.7,124.0,123.94,0.05393918]
[1741802664027,73.43986188,124.0,123.94,0.05393918]
[1741802664427,8.07,123.95,123.94,0.05393918]
[1741802665032,39.34,123.95,123.89,2.0518]
[1741802665226,8.0724,123.92,123.89,2.0518]
[1741802666028,8.0722,123.92,123.89,2.0518]
[1741802666235,39.34,123.95,123.89,2.0518]
[1741802666431,0.05658642,123.92,123.89,2.10467583]
[1741802666628,8.0688,123.97,123.93,8.0707]
[1741802666834,39.24,124.0,123.92,33.73986188]
[1741802667136,8.0677,123.99,123.92,33.73986188]
[1741802667330,39.24,124.0,123.92,33.73986188]
[1741802667830,0.05534153,123.97,123.96,8.0688]
[1741802668225,8.0693,123.96,123.95,0.06145743]
[1741802668636,0.05534153,123.97,123.95,0.06145743]
[1741802669336,8.0693,123.96,123.95,0.06145743]
[1741802669933,0.05534153,123.97,123.95,0.06145743]
[1741802670734,0.05534153,123.97,123.95,8.13115743]
[1741802671333,0.05534153,123.97,123.96,8.0693]
[1741802671640,47.307,124.0,123.95,0.06145743]
[1741802671841,39.24,124.0,123.95,0.06145743]
[1741802672336,39.08,124.03,123.95,0.06145743]
[1741802672640,72.81986188,124.03,123.94,2.169]
[1741802672843,72.81986188,124.03,123.98,0.06210903]
[1741802673138,8.0674,123.99,123.98,0.06210903]
[1741802673540,47.1274,123.99,123.98,0.06210903]
[1741802673744,8.0689,123.97,123.94,2.169]
[1741802674543,39.06,123.99,123.94,2.169]
[1741802674944,0.05234426,123.98,123.95,0.05245452]
[1741802675139,8.0693,123.96,123.95,0.05245452]
[1741802676945,8.0693,123.96,123.95,5.452e-05]
[1741802681551,8.0732,123.9,123.89,2.0518]
[1741802681854,38.62,123.93,123.87,10.1907]
[1741802682044,8.0729,123.91,123.87,2.1159]
[1741802682445,38.6,123.93,123.87,10.1908]
[1741802682648,0.0515489,123.9,123.88,0.05259028]
[1741802683049,8.1250489,123.9,123.88,0.05259028]
[1741802683749,0.0515489,123.9,123.88,0.05259028]
[1741802684259,0.0515489,123.9,123.88,8.12679028]
[1741802684556,0.0515489,123.9,123.88,0.05259028]
[1741802684948,0.0515489,123.9,123.89,8.0739]
[1741802685344,38.6,123.93,123.88,0.05259028]
[1741802685646,8.0709,123.94,123.91,8.0721]
[1741802686047,38.38,123.96,123.87,35.85576188]
[1741802686448,38.3,123.96,123.87,35.85576188]
[1741802686652,8.12391037,123.93,123.9,8.1351926]
[1741802687252,0.05231037,123.93,123.9,0.0619926]
[1741802688857,8.0726,123.91,123.9,0.0619926]
[1741802690259,8.0723,123.92,123.9,0.0619926]
[1741802690460,0.05231037,123.93,123.9,0.0619926]
[1741802690661,0.05231037,123.93,123.9,8.1348926]
[1741802690859,0.05231037,123.93,123.9,0.0619926]
[1741802691257,0.05231037,123.93,123.92,8.0719]
[1741802691955,24.32,124.06,123.9,0.0619926]
[1741802692165,37.9,123.99,123.9,33.73986188]
[1741802692461,37.9,123.99,123.9,35.80156188]
[1741802693259,8.0688,123.97,123.93,0.05811815]
[1741802693560,37.9,123.99,123.93,0.05811815]
[1741802694562,37.7,123.99,123.93,0.05811815]
[1741802694963,8.0684,123.98,123.93,0.05811815]
[1741802695364,37.7,123.99,123.93,0.05811815]
[1741802695663,45.7678,123.99,123.96,8.0689]
[1741802696068,45.7678,123.99,123.96,8.12247853]
[1741802696360,8.0678,123.99,123.96,8.12247853]
[1741802696561,37.6,124.01,123.96,8.12247853]
[1741802696763,8.0682,123.98,123.96,8.12247853]
[1741802696962,37.6,124.01,123.96,0.05357853]
[1741802697462,8.0684,123.98,123.96,0.05357853]
[1741802699665,37.6,124.01,123.98,8.068]
[1741802699964,37.6,124.01,123.96,0.05357853]
[1741802700163,8.0679,123.99,123.96,8.12257853]
[1741802700360,71.33986188,124.01,123.96,0.05357853]
[1741802700758,8.0687,123.97,123.96,0.05357853]
[1741802701159,45.4487,123.97,123.96,0.05357853]
[1741802701362,71.11986188,123.97,123.88,37.77790714]
[1741802701755,33.73986188,123.95,123.88,33.57100714]
[1741802702361,8.0729,123.91,123.88,33.57100714]
[1741802702559,37.45302915,123.93,123.9,0.05596431]
[1741802703569,37.45302915,123.93,123.91,8.0725]
[1741802703868,0.05302915,123.93,123.9,0.05596431]
[1741802704061,0.05302915,123.93,123.9,4.28636431]
[1741802704466,0.05302915,123.93,123.91,8.0726]
[1741802704666,0.05302915,123.93,123.9,4.28636431]
[1741802704973,0.05302915,123.93,123.91,8.0726]
[1741802705272,0.05302915,123.93,123.9,0.05596431]
[1741802705473,8.0725,123.92,123.9,0.05596431]
[1741802705775,0.05302915,123.93,123.9,0.05596431]
[1741802706273,8.12442915,123.93,123.9,8.12916431]
[1741802706473,0.05302915,123.93,123.9,0.05596431]
[1741802706674,0.05302915,123.93,123.92,8.0719]
[1741802707474,37.34,123.99,123.91,33.73986188]
[1741802707675,37.34,123.99,123.92,4.1651]
[1741802707868,37.34,123.99,123.92,41.4651]
[1741802708773,37.34,123.99,123.94,0.06191623]
[1741802709171,37.34,123.99,123.97,8.0685]
[1741802709366,1.8741,124.01,123.97,8.0685]
[1741802709572,39.1541,124.01,123.97,0.05287311]
[1741802710376,37.28,124.01,123.97,8.12117311]
[1741802710576,45.3464,124.01,123.97,8.12117311]
[1741802710870,1.9936,124.03,123.99,8.0668]
[1741802711074,37.16,124.02,123.93,33.73986188]
[1741802711275,37.16,124.02,124.0,0.06127192]
[1741802711471,37.16,124.02,123.93,33.73986188]
[1741802711671,45.2256,124.02,123.93,33.73986188]
[1741802711869,45.2256,124.02,123.98,8.0676]
[1741802712069,45.1651,124.03,123.93,33.73986188]
[1741802712271,8.0651,124.03,123.99,0.06223063]
[1741802712464,1.8773,124.04,124.0,8.0662]
[1741802712672,1.0099,124.08,124.0,0.05827371]
[1741802712881,1.0099,124.08,123.99,33.73986188]
[1741802713076,8.0626,124.07,124.03,0.06139651]
[1741802713477,37.1,124.08,124.03,0.06139651]
[1741802713979,3.9084,124.1,124.03,0.06139651]
[1741802714185,37.06,124.09,124.03,0.06139651]
[1741802714388,70.79986188,124.09,124.03,0.06139651]
[1741802715179,8.0628,124.07,124.03,0.06139651]
[1741802715582,70.79986188,124.09,124.03,0.06139651]
[1741802715885,8.0638,124.05,124.03,0.06139651]
[1741802716286,70.79986188,124.09,124.03,0.06139651]
[1741802716485,33.73986188,124.09,124.03,0.06139651]
[1741802716779,36.92,124.08,124.03,0.06139651]
[1741802716988,8.0595,124.12,124.04,70.63986188]
[1741802717180,33.73986188,124.17,124.05,6.3697]
[1741802717382,36.88,124.16,124.07,0.05777484]
[1741802717581,36.88,124.16,124.07,8.0619]
[1741802717782,36.88,124.16,124.1,0.05462681]
[1741802718184,33.73986188,124.17,124.1,0.05462681]
[1741802718385,36.84,124.15,124.1,0.05462681]
[1741802718583,246.9055,124.18,124.1,0.05462681]
[1741802718787,36.86,124.17,124.11,8.0595]
[1741802718981,36.86,124.17,124.08,33.73986188]
[1741802718982,4.8655,124.18,124.13,0.05584645]
[1741802719182,41.7255,124.18,124.13,0.05584645]
[1741802720188,8.0567,124.16,124.13,0.05584645]
[1741802720686,41.7255,124.18,124.13,0.05584645]
[1741802721184,33.73986188,124.17,124.13,0.05584645]
[1741802721382,8.0593,124.12,124.06,70.51986188]
[1741802721586,8.0593,124.12,124.06,36.78]
[1741802721787,8.0595,124.12,124.06,44.8425]
[1741802722087,36.78,124.14,124.06,44.8425]
[1741802722288,36.78,124.14,124.06,70.51986188]
[1741802722489,0.05993801,124.11,124.09,0.06014287]
[1741802725589,8.11983801,124.11,124.09,0.06014287]
[1741802725791,0.05993801,124.11,124.09,0.06014287]
[1741802726197,8.0602,124.1,124.09,0.06014287]
[1741802727699,0.05993801,124.11,124.09,0.06014287]
[1741802728198,36.78,124.14,124.09,0.06014287]
[1741802728390,8.0572,124.15,124.09,0.06014287]
[1741802728588,36.36,124.17,124.09,0.06014287]
[1741802728795,8.0574,124.15,124.08,33.73986188]
[1741802728995,8.0574,124.15,124.11,8.0591]
[1741802729198,8.0574,124.15,124.08,33.73986188]
[1741802729404,4.8655,124.18,124.12,0.05451272]
[1741802729405,8.0566,124.16,124.12,0.05451272]
[1741802729602,3.8576,124.18,124.12,0.05451272]
[1741802729603,1.9828,124.18,124.12,0.05451272]
[1741802729804,1.9828,124.18,124.1,70.09986188]
[1741802730101,8.0559,124.17,124.14,0.05503059]
[1741802730295,36.36,124.19,124.14,0.05503059]
[1741802730596,8.0554,124.18,124.14,0.05503059]
[1741802730798,35.74016188,124.23,124.14,0.05503059]
[1741802731101,35.74016188,124.23,124.14,33.73986188]
[1741802731102,36.32,124.22,124.14,33.73986188]
[1741802731402,1.9302,124.24,124.17,0.05517948]
[1741802731602,38.2302,124.24,124.17,0.05517948]
[1741802731799,38.2102,124.24,124.17,0.05517948]
[1741802732101,44.3314,124.24,124.17,0.05517948]
[1741802732300,8.0514,124.24,124.17,2.04867948]
[1741802732501,36.32,124.25,124.17,2.04867948]
[1741802732895,36.32,124.25,124.17,1.9935]
[1741802733194,8.0531,124.21,124.2,0.05944996]
[1741802733601,36.32,124.25,124.2,0.05944996]
[1741802734102,33.73986188,124.24,124.2,0.05944996]
[1741802734300,2.0003,124.23,124.2,0.05944996]
[1741802734495,2.0003,124.23,124.15,2.0369]
[1741802734697,33.73986188,124.22,124.13,2.1118]
[1741802734897,33.73986188,124.2,124.12,38.4547]
[1741802735098,33.73986188,124.2,124.12,36.32]
[1741802735403,8.0567,124.16,124.1,4.1487]
[1741802735591,8.0567,124.16,124.15,0.05328095]
[1741802735896,33.73986188,124.2,124.11,8.0592]
[1741802736101,0.05855598,124.17,124.14,0.05658706]
[1741802736309,0.05855598,124.17,124.06,2.1911]
[1741802736497,33.73986188,124.15,124.05,35.64650714]
[1741802736806,33.73986188,124.12,124.05,35.64650714]
[1741802736996,36.36,124.11,124.05,33.57100714]
[1741802737496,0.05139559,124.09,124.07,0.05144289]
[1741802737897,33.73986188,124.08,123.97,89.45810084]
[1741802738099,36.34,124.07,123.98,43.71440714]